Workbook

Sheet 1493
A1: CR calculations
B2: input values for cells in | C2: BLUE | D2: others are fixed or calculated
A4: CR = (Vcyl+Vcc)/Vcc | C4: Vcyl=Vcc*(CR-1) | E4: Vcc=Vcyl/(CR-1)
A5: where :
A6: Vcc = total combustion chamber volume
A7: = Vhead+Vgasket+Vdeck+Vrecess
A8: where:
A9: Vhead=volume in head
A10: Vgasket=volume due to head gasket thickness
A11: Vdeck=volume due to difference between piston TDC and block deck
A12: Vrecess=volume of recess in top of piston (a negative value for crowned pistons)
A14: Vcyl=stroke*pi*(bore/2)^2
A16: starting 1500 values:
A17: stroke | B17: 87.5 | C17: mm
A18: bore | B18: =IF(D18="std", 'bore measurements'!B2,IF(D18=0.01,'bore measurements'!B3,IF(D18=0.02,'bore measurements'!B4,IF(D18=0.03,'bore measurements'!B5,IF(D18=0.04,'bore measurements'!B6,IF(D18=0.05,'bore measurements'!B7,IF(D18=0.06,'bore measurements'!B8,"specify!"))))))) -> 73.7 | C18: mm | D18: std | E18: type "std" or 0.010 or 0.020 or 0.030 or 0.040 or 0.050 or 0.060 depending on starting piston size
A19: Vcyl | B19: =(B17/10)*PI()*(B18/2/10)^2 -> 373.2784431 | C19: cc | D19: =B19*4 -> 1493.113773 | E19: cc engine displacement
A20: Vgasket | B20: =(D20*2.54)*PI()*(((B18)/10/2)^2) -> 3.684151583 | C20: cc | D20: 0.034 | E20: inches compressed head gasket thickness
A21: Vdeck | B21: =(D21/0.03937/10)*PI()*(B$18/10/2)^2 -> 2.167152324 | C21: cc | D21: 0.02 | E21: inches of piston top to block deck clearance; change this value from nominal 0.020 if block has been decked or non-Spitfire pistons used
A22: Vrecess | B22: =IF(D22="dish", 6.7,IF(D22="flat",0,"specify!")) -> 6.7 | C22: cc | D22: dish | E22: type "dish" if dished pistons, "flat" if flat-top pistons
A23: CR | B23: 7.5 | C23: :1 | D23: fill-in starting value (e.g., 7.5 for stock dished-piston North America 1500, 9 for stock flat-top piston UK 1500)
A24: therefore:
A25: Vcc old | B25: =B19/(B23-1) -> 57.42745279 | C25: cc
A26: Vhead old | B26: =B25-(B20+B21+B22) -> 44.87614888 | C26: cc | E26: input measured value of head volume here, if available--otherwise, leave blank and nominal value used
E27: (useful if substituting a non-stock or already-shaved head)
A28: solution for milling head to achieve new CR:
A29: target CR | B29: 9.5
A30: Vhead old | B30: =IF(D26>0, D26,B26) -> 44.87614888 | C30: cc | D30: =IF(B30=B26,"nominal","measured") -> nominal | E30: if a measured value entered above, then measured value is used--otherwise nominal value used
A31: new bore | B31: =IF(D31="std", 'bore measurements'!B2,IF(D31=0.01,'bore measurements'!B3,IF(D31=0.02,'bore measurements'!B4,IF(D31=0.03,'bore measurements'!B5,IF(D31=0.04,'bore measurements'!B6,IF(D31=0.05,'bore measurements'!B7,IF(D31=0.06,'bore measurements'!B8,"specify!"))))))) -> 73.7 | C31: mm | D31: std | E31: type "std" or 0.010 or 0.020 or 0.030 or 0.040 or 0.050 or 0.060 depending on new piston size
A32: Vcyl new | B32: =(B17/10)*PI()*(B31/2/10)^2 -> 373.2784431 | C32: cc | D32: =B32*4 -> 1493.113773 | E32: cc engine displacement
A33: Vdeck new | B33: =(D33/0.03937/10)*PI()*(B$18/10/2)^2 -> 2.167152324 | C33: cc | D33: 0.02 | E33: inches of piston top to block deck clearance; change this value from nominal 0.020 if block has been decked or non-Spitfire pistons used
A34: Vrecess | B34: =IF(D34="dish", 6.7,IF(D34="flat",0,"specify!")) -> 0 | C34: cc | D34: flat | E34: type "dish" for dished pistons, "flat" for flat-top pistons
A35: Vcc new | B35: =B32/(B29-1) -> 43.91511096 | C35: cc
A36: Vhead new | B36: =B35-B20-B33-B34 -> 38.06380705 | C36: cc
A37: cc to remove | B37: =B30-B36 -> 6.812341833 | C37: cc
A38: cc per mm | B38: 3.5 | C38: cc | D38: cc's removed per mm of milling (approx.)
A39: to mill off | B39: =B37/B38 -> 1.946383381 | C39: mm
A40: to mill off | B40: =B39*0.03937 -> 0.0766291137 | C40: inches
U61: =2.9425/2 -> 1.47125

Sheet 1296
A1: CR calculations
B2: input values for cells in | C2: BLUE | D2: others are fixed or calculated
A4: CR = (Vcyl+Vcc)/Vcc | C4: Vcyl=Vcc*(CR-1) | E4: Vcc=Vcyl/(CR-1)
A5: where :
A6: Vcc = total combustion chamber volume
A7: = Vhead+Vgasket+Vdeck+Vrecess
A8: where:
A9: Vhead=volume in head
A10: Vgasket=volume due to head gasket thickness
A11: Vdeck=volume due to difference between piston TDC and block deck
A12: Vrecess=volume of recess in top of piston (a negative value for crowned pistons)
A14: Vcyl=stroke*pi*(bore/2)^2
A16: starting 1300 values:
A17: stroke | B17: 76 | C17: mm
A18: bore | B18: =IF(D18="std", 'bore measurements'!B2,IF(D18=0.01,'bore measurements'!B3,IF(D18=0.02,'bore measurements'!B4,IF(D18=0.03,'bore measurements'!B5,IF(D18=0.04,'bore measurements'!B6,IF(D18=0.05,'bore measurements'!B7,IF(D18=0.06,'bore measurements'!B8,"specify!"))))))) -> 73.7 | C18: mm | D18: std | E18: type "std" or 0.010 or 0.020 or 0.030 or 0.040 or 0.050 or 0.060 depending on starting piston size
A19: Vcyl | B19: =(B17/10)*PI()*(B18/2/10)^2 -> 324.2189906 | C19: cc | D19: =B19*4 -> 1296.875962 | E19: cc engine displacement
A20: Vgasket | B20: =(D20*2.54)*PI()*(((B18)/10/2)^2) -> 3.684151583 | C20: cc | D20: 0.034 | E20: inches compressed head gasket thickness
A21: Vdeck | B21: =(D21/0.03937/10)*PI()*(B$18/10/2)^2 -> 2.167152324 | C21: cc | D21: 0.02 | E21: inches of piston top to block deck clearance; change this value from nominal 0.020 if block has been decked or non-Spitfire pistons used
A22: Vrecess | B22: =IF(D22="dish", 6.7,IF(D22="flat",0,"specify!")) -> 0 | C22: cc | D22: flat | E22: type "dish" if dished pistons, "flat" if flat-top pistons
A23: CR | B23: 9 | C23: :1 | D23: fill-in starting value (e.g., 9 for stock Spitfire mk3 using 515973 head)
A24: therefore:
A25: Vcc old | B25: =B19/(B23-1) -> 40.52737383 | C25: cc
A26: Vhead old | B26: =B25-(B20+B21+B22) -> 34.67606992 | C26: cc | E26: input measured value of head volume here, if available--otherwise, leave blank and nominal value used
E27: (useful if substituting a non-stock or already-shaved head)
A28: solution for milling head to achieve new CR:
A29: target CR | B29: 9.5
A30: Vhead old | B30: =IF(D26>0, D26,B26) -> 34.67606992 | C30: cc | D30: nominal | E30: if a measured value entered above, then measured value is used--otherwise nominal value used
A31: new bore | B31: =IF(D31="std", 'bore measurements'!B2,IF(D31=0.01,'bore measurements'!B3,IF(D31=0.02,'bore measurements'!B4,IF(D31=0.03,'bore measurements'!B5,IF(D31=0.04,'bore measurements'!B6,IF(D31=0.05,'bore measurements'!B7,IF(D31=0.06,'bore measurements'!B8,"specify!"))))))) -> 73.7 | C31: mm | D31: std | E31: type "std" or 0.010 or 0.020 or 0.030 or 0.040 or 0.050 or 0.060 depending on new piston size
A32: Vcyl new | B32: =(B17/10)*PI()*(B31/2/10)^2 -> 324.2189906 | C32: cc | D32: =B32*4 -> 1296.875962 | E32: cc engine displacement
A33: Vdeck new | B33: =(D33/0.03937/10)*PI()*(B$18/10/2)^2 -> 2.167152324 | C33: cc | D33: 0.02 | E33: inches of piston top to block deck clearance; change this value from nominal 0.020 if block has been decked or non-Spitfire pistons used
A34: Vrecess | B34: =IF(D34="dish", 6.7,IF(D34="flat",0,"specify!")) -> 0 | C34: cc | D34: flat | E34: type "dish" for dished pistons, "flat" for flat-top pistons
A35: Vcc new | B35: =B32/(B29-1) -> 38.14341066 | C35: cc
A36: Vhead new | B36: =B35-B20-B33-B34 -> 32.29210675 | C36: cc
A37: cc to remove | B37: =B30-B36 -> 2.383963166 | C37: cc
A38: cc per mm | B38: 3.5 | C38: cc | D38: cc's removed per mm of milling (approx.)
A39: to mill off | B39: =B37/B38 -> 0.6811323332 | C39: mm
A40: to mill off | B40: =B39*0.03937 -> 0.02681617996 | C40: inches
U61: =2.9425/2 -> 1.47125

Sheet bore measurements
A1: bore (over) | B1: bore (mm)
A2: standard | B2: 73.7
A3: 0.01 | B3: =A3*25.4+B$2 -> 73.954
A4: 0.02 | B4: 74.208
A5: 0.03 | B5: 74.462
A6: 0.04 | B6: 74.716
A7: 0.05 | B7: 74.97
A8: 0.06 | B8: 75.224
